bitfinex/quotes_SOLUSD_20250607
["timestamp","ask_amount","ask_price","bid_price","bid_amount"]
[1749266635739,158.330229,148.92,148.88,9.730229]
[1749266636237,148.6,148.92,148.88,9.730229]
[1749266636431,158.330229,148.92,148.88,9.730229]
[1749266636859,148.6,148.92,148.89,9.730229]
[1749266637041,11.291529,148.95,148.91,9.730229]
[1749266637235,11.291529,148.95,148.92,41.22]
[1749266637436,11.291529,148.95,148.93,6.71456388]
[1749266637748,44.79181043,148.97,148.93,6.71456388]
[1749266637749,18.64964886,148.97,148.93,6.71456388]
[1749266637949,9.730229,148.96,148.93,6.71456388]
[1749266641848,174.74216157,148.98,148.93,16.44479288]
[1749266642160,184.330229,148.98,148.94,9.730229]
[1749266642335,148.6,148.98,148.95,61.630229]
[1749266642735,1.5613,148.99,148.95,61.630229]
[1749266642736,11.291529,148.99,148.95,61.630229]
[1749266643670,18.64964886,149.01,148.96,16.4434406]
[1749266643862,9.730229,149.01,148.96,16.4434406]
[1749266644059,9.730229,149.01,148.97,9.730229]
[1749266644249,9.730229,149.01,148.98,41.2]
[1749266644948,166.8101065,149.02,148.98,41.2]
[1749266645153,176.5403355,149.02,148.99,6.71185985]
[1749266645951,166.8101065,149.02,148.99,6.71185985]
[1749266646174,166.8101065,149.02,149.0,10.7]
[1749266646480,166.8101065,149.02,149.01,41.2]
[1749266648179,18.2101065,149.02,149.01,47.91095899]
[1749266651477,26.0,149.05,149.01,47.91095899]
[1749266651671,150.33226157,149.06,149.02,9.730229]
[1749266651672,150.1901,149.06,149.02,9.730229]
[1749266651986,6.5929,149.08,149.03,50.910229]
[1749266652157,6.5929,149.08,149.04,9.730229]
[1749266652158,9.730229,149.08,149.04,9.730229]
[1749266652356,9.730229,149.08,149.05,10.7]
[1749266652554,18.64964886,149.07,149.06,41.18]
[1749266652773,28.52203943,149.07,149.06,41.18]
[1749266653279,18.79181043,149.07,149.06,41.18]
[1749266653453,28.52203943,149.07,149.06,41.18]
[1749266654164,35.23029729,149.07,149.06,41.18]
[1749266655265,35.37245886,149.07,149.06,41.18]
[1749266655468,18.933972,149.06,149.05,51.88]
[1749266655764,183.9729089,149.06,149.01,10.7]
[1749266656088,0.14216157,149.04,149.02,41.18]
[1749266657165,9.730229,149.03,149.02,41.18]
[1749266659049,1.6465,149.04,149.02,41.18]
[1749266659267,9.730229,149.03,149.02,41.18]
[1749266660387,148.6,149.05,149.02,41.18]
[1749266660679,1.6194,149.08,149.02,47.89049696]
[1749266660888,1.6194,149.08,149.05,9.730229]
[1749266661185,25.06494886,149.11,149.06,52.58]
[1749266661386,18.64964886,149.11,149.06,62.310229]
[1749266661579,150.36156157,149.12,149.07,9.730229]
[1749266661580,150.2194,149.12,149.07,9.730229]
[1749266661775,9.730229,149.11,149.06,52.58]
[1749266662086,150.2194,149.12,149.06,62.310229]
[1749266662288,17.80448815,149.14,149.09,9.730229]
[1749266662486,17.80448815,149.14,149.1,41.94]
[1749266662787,9.730229,149.13,149.1,41.94]
[1749266663159,17.80448815,149.14,149.1,41.94]
[1749266663355,9.730229,149.12,149.1,41.94]
[1749266663560,9.730229,149.11,149.1,41.94]
[1749266664213,0.14216157,149.13,149.1,41.94]
[1749266664376,43.15930851,149.14,149.1,41.94]
[1749266664377,9.730229,149.11,149.1,41.94]
[1749266664577,9.730229,149.12,149.1,41.94]
[1749266665182,9.730229,149.11,149.1,41.94]
[1749266665699,17.80448815,149.14,149.1,41.94]
[1749266666003,9.730229,149.11,149.1,41.94]
[1749266667628,9.87239057,149.11,149.1,41.94]
[1749266670299,16.57884888,149.11,149.1,41.94]
[1749266670501,9.87239057,149.11,149.1,41.94]
[1749266671188,16.57884888,149.11,149.1,41.94]
[1749266671403,6.84861988,149.11,149.1,41.94]
[1749266671605,9.87239057,149.11,149.1,41.94]
[1749266671995,16.5790429,149.11,149.09,41.92]
[1749266672305,38.11010686,149.1,149.09,41.92]
[1749266672507,28.37987786,149.1,149.09,41.92]
[1749266674107,18.79181043,149.1,149.09,41.92]
[1749266674309,28.52203943,149.1,149.09,41.92]
[1749266675503,28.664201,149.1,149.09,41.92]
[1749266676004,27.6455,149.11,149.09,41.92]
[1749266676196,9.730229,149.1,149.09,41.92]
[1749266677499,0.14216157,149.12,149.09,41.92]
[1749266677695,9.87239057,149.12,149.09,48.62735797]
[1749266678092,9.730229,149.12,149.09,48.62735797]
[1749266678599,9.730229,149.11,149.09,48.62735797]
[1749266679196,9.730229,149.1,149.09,41.92]
[1749266681794,6.70607709,149.12,149.09,41.92]
[1749266682095,9.730229,149.1,149.09,41.92]
[1749266682690,18.64964886,149.13,149.09,41.92]
[1749266682911,9.730229,149.1,149.09,41.92]
[1749266685493,16.57929868,149.1,149.09,41.92]
[1749266685713,0.14216157,149.09,149.08,42.0384965]
[1749266685919,9.87239057,149.09,149.08,42.0384965]
[1749266686094,9.730229,149.09,149.08,42.0384965]
[1749266688215,9.730229,149.09,149.08,42.0184965]
[1749266692811,16.43758697,149.09,149.08,42.0184965]
[1749266694615,35.08723583,149.09,149.08,0.1984965]
[1749266694817,41.43573583,149.09,149.08,0.1984965]
[1749266696296,31.70550683,149.09,149.08,0.1984965]
[1749266696501,41.72005897,149.09,149.08,0.1984965]
[1749266699617,25.282472,149.09,149.08,0.1984965]
[1749266699843,9.87239057,149.09,149.08,0.1984965]
[1749266700327,9.730229,149.09,149.08,0.1984965]
[1749266700625,9.730229,149.09,149.08,41.8784965]
[1749266700815,17.80448815,149.14,149.08,48.5862861]
[1749266701016,9.730229,149.11,149.08,48.5862861]
[1749266701607,9.730229,149.1,149.08,48.5862861]
[1749266702212,32.61971811,149.16,149.09,9.730229]
[1749266702518,9.730229,149.13,149.1,11.12]
[1749266702717,9.730229,149.12,149.1,11.12]
[1749266702918,1.6103,149.16,149.1,11.12]
[1749266703147,9.730229,149.12,149.1,11.12]
[1749266703709,9.730229,149.12,149.1,17.82665962]
[1749266703950,9.730229,149.11,149.1,11.12]
[1749266705511,9.730229,149.11,149.1,53.02]
[1749266707536,9.730229,149.12,149.1,59.72690811]
[1749266708637,148.6,149.14,149.1,53.02]
[1749266708638,9.730229,149.11,149.1,53.02]
[1749266709715,148.6,149.14,149.1,59.72687756]
[1749266709921,9.730229,149.11,149.1,59.72687756]
[1749266710248,9.730229,149.11,149.1,53.02]
[1749266711238,9.730229,149.11,149.1,59.72690811]
[1749266711747,9.730229,149.11,149.1,53.02]
[1749266713140,9.87239057,149.12,149.1,53.02]
[1749266713449,9.730229,149.11,149.1,53.02]
[1749266715739,0.14216157,149.12,149.1,53.02]
[1749266715934,9.730229,149.11,149.1,53.02]
[1749266717053,9.730229,149.11,149.08,0.1984965]
[1749266717054,16.43670677,149.11,149.08,0.1984965]
[1749266717375,28.37987786,149.09,149.08,42.1784965]
[1749266720844,35.37155897,149.09,149.08,0.1984965]
[1749266721250,40.38680306,149.09,149.08,0.1984965]
[1749266721766,35.37155897,149.09,149.08,0.1984965]
[1749266722344,40.3854735,149.09,149.08,0.1984965]
[1749266723565,35.37155897,149.09,149.08,0.1984965]
[1749266725052,18.64964886,149.08,149.05,41.92]
[1749266725255,148.6,149.07,149.05,41.92]
[1749266725461,158.330229,149.07,149.05,41.92]
[1749266725768,158.330229,149.07,149.05,48.6290826]
[1749266727063,9.730229,149.06,149.05,48.6290826]
[1749266727958,158.330229,149.07,149.05,48.6290826]
[1749266729671,148.6,149.07,149.05,48.6290826]
[1749266729845,158.330229,149.07,149.05,48.6290826]
[1749266731365,148.6,149.07,149.05,48.6290826]
[1749266731574,158.330229,149.07,149.05,48.6290826]
[1749266731769,148.6,149.07,149.05,48.6290826]
[1749266740278,158.330229,149.07,149.05,48.6290826]
[1749266742358,148.6,149.07,149.05,48.6290826]
[1749266743793,158.330229,149.07,149.05,48.6290826]
[1749266744351,148.6,149.07,149.05,48.6290826]
[1749266744785,158.330229,149.07,149.05,48.6290826]
[1749266745778,158.330229,149.07,149.05,59.7690826]
[1749266749111,9.730229,149.06,149.05,53.06]
[1749266751400,9.730229,149.06,149.05,41.92]
[1749266752197,148.6,149.07,149.05,48.62907897]
[1749266752388,9.730229,149.06,149.05,48.62907897]
[1749266752712,9.730229,149.06,149.05,41.92]
[1749266756721,168.83274886,149.05,149.0,11.14]
[1749266757049,9.730229,149.01,149.0,11.14]
[1749266757341,9.730229,149.01,149.0,52.86]
[1749266760422,9.87239057,149.01,149.0,52.84]
[1749266762736,9.730229,149.01,149.0,52.84]
[1749266764934,9.87239057,149.01,149.0,11.14]
[1749266765291,9.87239057,149.01,149.0,41.66]
[1749266767113,9.87239057,149.01,148.97,45.37261701]
[1749266767454,9.730229,148.99,148.98,41.64]
[1749266768447,9.730229,148.99,148.98,48.35231037]
[1749266768745,9.730229,148.99,148.98,48.33231037]
[1749266769450,9.730229,148.99,148.98,41.62]
[1749266772064,9.730229,148.99,148.98,41.6]
[1749266775039,18.64964886,149.01,148.98,41.6]
[1749266775349,9.730229,148.99,148.98,41.6]
[1749266782555,18.64964886,149.01,148.98,41.6]
[1749266782729,25.21734886,149.06,148.98,65.09296081]
[1749266782932,9.730229,149.06,149.02,9.730229]
[1749266783134,9.730229,149.06,149.03,42.88]
[1749266783352,6.21376862,149.06,149.03,42.88]
[1749266784331,6.21376862,149.06,149.03,49.58973156]
[1749266785283,9.70930693,149.06,149.03,49.58973156]
[1749266786140,9.70930693,149.07,149.03,59.29903849]
[1749266787152,0.14216157,149.07,149.03,59.29903849]
[1749266787452,9.8514685,149.07,149.03,59.29903849]
[1749266789247,159.90810693,149.08,149.03,59.29903849]
[1749266792188,9.70930693,149.07,149.03,59.29903849]
[1749266792794,150.1988,149.08,149.03,59.29903849]
[1749266792964,9.70930693,149.07,149.03,59.29903849]
[1749266793288,9.70930693,149.07,149.03,49.58973156]
[1749266799090,9.70930693,149.07,149.03,59.29903849]
[1749266800488,150.1988,149.08,149.03,59.29903849]
[1749266800489,159.90810693,149.08,149.04,9.70930693]
[1749266801584,159.90810693,149.08,149.05,49.409158]
[1749266801789,150.1988,149.08,149.05,49.409158]
[1749266801996,159.90810693,149.08,149.05,49.409158]
[1749266804197,9.70930693,149.06,149.05,42.7]
[1749266805293,6.21364293,149.06,149.05,42.7]
[1749266807203,9.85026146,149.07,149.05,42.7]
[1749266809300,0.14216157,149.07,149.05,42.7]
[1749266809504,0.14216157,149.07,149.05,49.40907735]
[1749266809704,9.85026146,149.07,149.05,49.40907735]
[1749266816391,0.14216157,149.07,149.05,49.40907735]
[1749266816717,9.85026146,149.07,149.05,49.40907735]
[1749266817898,9.85026146,149.07,149.05,42.7]
[1749266819821,9.85026146,149.07,149.05,49.40911014]
[1749266823140,9.85026146,149.07,149.05,42.7]
[1749266823606,9.70809989,149.06,149.05,42.7]
[1749266827225,6.21333992,149.06,149.05,42.7]
[1749266827709,6.35550149,149.07,149.05,42.7]
[1749266828999,6.21333992,149.06,149.05,42.7]
[1749266834519,6.35550149,149.07,149.05,42.7]
[1749266835626,6.35550149,149.07,149.06,42.12]
[1749266838834,6.35550149,149.07,149.01,6.71095899]
[1749266839015,6.21333992,149.02,148.97,18.15276095]
[1749266839205,18.64964886,149.04,148.98,42.22]
[1749266839406,6.21333992,149.01,148.99,42.22]
[1749266839710,6.21333992,149.02,148.99,42.22]
[1749266840233,6.21333992,149.0,148.97,11.44]
[1749266840434,6.21333992,148.99,148.98,42.22]
[1749266842348,6.21333992,148.99,148.97,11.44]
[1749266842513,6.21333992,148.99,148.98,42.2]
[1749266846245,6.21333992,148.99,148.98,42.14]
[1749266847442,148.6,149.01,148.98,42.14]
[1749266847643,6.21333992,148.99,148.98,42.14]
[1749266848422,6.21333992,148.99,148.98,42.12]
[1749266852145,6.35550149,148.99,148.98,42.12]
[1749266852440,6.35550149,148.99,148.98,42.06]
[1749266852619,6.35550149,148.99,148.97,11.44]
[1749266852620,0.14216157,148.98,148.97,11.44]
[1749266852822,173.60515035,148.98,148.97,11.44]
[1749266853220,173.60515035,148.98,148.97,53.5]
[1749266854943,173.60515035,148.98,148.97,11.44]
[1749266855145,173.60515035,148.98,148.97,53.48]
[1749266855648,148.6,148.98,148.97,53.48]
[1749266855954,148.6,148.98,148.97,60.19276095]
[1749266856942,148.6,148.98,148.97,60.23276095]
[1749266860643,6.21333992,149.01,148.97,77.01466334]
[1749266860847,6.21333992,149.0,148.97,77.01466334]
[1749266861051,0.14216157,149.02,148.97,77.01466334]
[1749266861222,6.21333992,149.0,148.97,77.01466334]
[1749266864863,0.14216157,149.02,148.97,77.01466334]
[1749266865036,6.21333992,149.0,148.97,77.01466334]
[1749266881957,6.21333992,149.01,148.97,83.22800326]
[1749266883171,46.16974886,149.03,148.97,83.22800326]
[1749266883362,6.21333992,149.01,148.97,83.22800326]
[1749266884355,6.21333992,149.0,148.97,77.01466334]
[1749266885450,6.21333992,149.01,148.97,83.22800326]
[1749266887886,6.21333992,149.0,148.97,77.01466334]
[1749266888478,6.21333992,149.0,148.97,60.23276095]
[1749266889692,27.5201,149.03,148.98,6.21333992]
[1749266889870,33.73343992,149.03,148.98,6.21333992]
[1749266891481,6.21333992,149.02,148.98,6.21333992]
[1749266891968,6.21333992,149.02,148.99,6.71185985]
[1749266892169,6.21333992,149.02,149.0,41.68]
[1749266894199,6.21333992,149.01,149.0,41.68]
[1749266894792,6.21333992,149.02,149.0,41.68]
[1749266905919,6.21333992,149.01,149.0,41.68]
[1749266906624,27.5201,149.03,149.0,41.68]
[1749266906784,6.21333992,149.02,149.0,41.68]
[1749266914430,27.5201,149.03,149.0,41.68]
[1749266914596,6.21333992,149.01,148.99,11.1]
[1749266914801,6.21333992,149.0,148.99,11.1]
[1749266915014,6.21333992,149.0,148.99,52.58]
[1749266918126,31.71655974,149.0,148.96,10.92]
[1749266918296,6.21333992,148.97,148.96,10.92]
[1749266918625,6.21333992,148.97,148.96,52.38]
[1749266919423,6.21333992,148.97,148.96,10.92]
[1749266919626,6.21333992,148.97,148.96,52.38]
[1749266925740,148.6,148.99,148.96,52.38]
[1749266925916,6.21333992,148.97,148.96,52.38]
[1749266933932,148.6,148.99,148.96,59.09317772]
[1749266934111,6.21333992,148.98,148.96,59.09317772]
[1749266935454,6.21333992,148.98,148.97,41.46]
[1749266936326,148.6,148.99,148.97,41.46]
[1749266936531,6.21333992,148.98,148.97,41.46]
[1749266950352,24.86298878,148.98,148.97,41.46]
[1749266951440,148.6,148.97,148.94,17.57410468]
[1749266951640,6.21333992,148.96,148.95,41.46]
[1749266953167,6.21333992,148.96,148.94,10.86]
[1749266953370,18.79181043,148.96,148.95,41.46]
[1749266953656,25.00515035,148.96,148.95,41.46]
[1749266953837,18.933972,148.95,148.94,10.86]
[1749266954043,25.14731192,148.95,148.94,52.32]
[1749266956332,25.14731192,148.95,148.9,17.57591672]
[1749266956559,25.14731192,148.95,148.91,41.46]
[1749266956560,6.21333992,148.93,148.91,41.46]
[1749266957357,6.21333992,148.93,148.9,17.57591672]
[1749266957661,6.21333992,148.93,148.91,41.46]
[1749266958169,6.21333992,148.93,148.91,48.1753853]
[1749266958352,6.21333992,148.93,148.91,6.7153853]
[1749266958540,6.21333992,148.93,148.92,41.46]
[1749266960245,6.21333992,148.93,148.91,6.7153853]
[1749266960446,6.21333992,148.92,148.91,6.7153853]
[1749266960656,6.21333992,148.92,148.91,48.1753853]
[1749266960859,6.21333992,148.93,148.91,48.1753853]
[1749266961866,6.21333992,148.92,148.9,17.57577891]
[1749266962065,6.21333992,148.92,148.91,41.46]
[1749266965837,6.21333992,148.92,148.91,6.71546571]
[1749266966059,6.21333992,148.92,148.91,41.46]
[1749266979180,24.86298878,148.92,148.9,10.86]
[1749266979380,6.21333992,148.91,148.9,10.86]
[1749266979599,6.21333992,148.91,148.9,52.32]
[1749266980252,154.81333992,148.91,148.9,52.32]
[1749266980454,148.6,148.91,148.9,41.46]
[1749266980756,148.6,148.91,148.9,48.17591672]
[1749266981059,148.6,148.96,148.9,71.17904844]
[1749266981367,148.6,148.96,148.94,6.21333992]
[1749266981560,148.6,148.96,148.95,52.3]
[1749266990991,154.81333992,148.96,148.95,52.3]
[1749266991760,154.81333992,148.96,148.91,10.84]
[1749266991761,186.3895403,148.96,148.91,10.84]
[1749266991966,6.21333992,148.93,148.92,41.44]
[1749266993985,6.21333992,148.93,148.91,10.84]
[1749266994170,6.21333992,148.93,148.92,41.44]
[1749266994577,18.79181043,148.95,148.92,41.44]
[1749266994782,154.81333992,148.96,148.92,47.65333992]
[1749266994980,148.6,148.96,148.92,41.44]
[1749266995294,6.21333992,148.95,148.92,41.44]
[1749266996297,6.21333992,148.95,148.92,48.15486852]
[1749266999786,154.81333992,148.96,148.92,48.15486852]
[1749267000298,6.21333992,148.95,148.92,48.15486852]
[1749267000874,154.81333992,148.96,148.92,48.15486852]
[1749267002298,154.81333992,148.96,148.92,54.36820844]
[1749267006002,6.21333992,148.95,148.92,41.44]
[1749267006191,6.21333992,148.94,148.92,41.44]
[1749267006905,6.21333992,148.95,148.92,41.44]
[1749267009286,6.21333992,148.95,148.92,48.15482342]
[1749267009798,6.21333992,148.95,148.92,41.44]
[1749267010921,6.21333992,148.95,148.92,48.15500619]
[1749267011612,6.21333992,148.95,148.93,10.84]
[1749267011810,6.21333992,148.95,148.94,41.44]
[1749267012014,148.6,148.96,148.94,48.15406105]
[1749267012512,154.81333992,148.96,148.94,41.44]
[1749267012818,6.21333992,148.95,148.94,41.44]
[1749267015522,6.21333992,148.95,148.93,10.84]
[1749267015724,156.97091598,148.96,148.94,41.44]
[1749267015929,154.81333992,148.95,148.94,41.44]
[1749267016693,148.6,148.94,148.93,10.84]
[1749267016904,173.74731192,148.94,148.93,52.28]
[1749267017945,180.46142498,148.94,148.93,52.28]
[1749267021927,31.86142498,148.94,148.93,52.28]
[1749267022635,31.86142498,148.94,148.93,10.84]
[1749267022942,31.86142498,148.94,148.93,52.28]
[1749267025026,31.57710184,148.94,148.89,10.84]
[1749267025242,6.21333992,148.92,148.9,41.44]
[1749267025641,6.21333992,148.92,148.91,41.44]
[1749267025950,24.86298878,148.92,148.91,41.44]
[1749267026548,24.86298878,148.92,148.89,10.84]
[1749267026761,6.21333992,148.91,148.89,10.84]
[1749267026921,154.81333992,148.91,148.9,41.44]
[1749267027645,154.81333992,148.91,148.89,10.84]
[1749267027853,154.81333992,148.91,148.9,41.44]
[1749267033833,154.81333992,148.91,148.89,10.84]
[1749267034037,6.21333992,148.9,148.89,10.84]
[1749267034263,6.21333992,148.9,148.89,52.28]
[1749267034858,24.86298878,148.9,148.89,52.28]
[1749267036861,25.00515035,148.9,148.89,52.28]
[1749267037042,25.00515035,148.9,148.89,10.84]
[1749267037244,25.00515035,148.9,148.89,52.28]
[1749267037444,31.86322864,148.9,148.89,10.84]
[1749267037640,31.86322864,148.9,148.89,52.28]
[1749267038463,25.14731192,148.9,148.89,52.28]
[1749267046771,31.86322864,148.9,148.89,52.28]
[1749267047150,25.14731192,148.9,148.89,52.28]
[1749267047344,31.86322864,148.9,148.89,52.28]
[1749267047648,31.86322864,148.9,148.85,10.84]
[1749267047845,6.21333992,148.87,148.86,41.44]
[1749267051274,25.14731192,148.87,148.86,41.44]
[1749267054091,167.39181043,148.86,148.85,10.84]
[1749267054262,173.60515035,148.86,148.85,52.28]
[1749267054864,173.74731192,148.86,148.85,52.28]
[1749267057491,25.14731192,148.86,148.85,52.28]
[1749267059469,25.14731192,148.86,148.85,10.84]
[1749267059682,25.14731192,148.86,148.85,52.28]
[1749267060899,25.14731192,148.86,148.85,41.44]
[1749267071504,18.64964886,148.85,148.81,17.53987862]
[1749267071700,6.21333992,148.84,148.81,17.53987862]
[1749267071908,6.21333992,148.84,148.82,41.44]
[1749267073211,18.79181043,148.82,148.81,10.82]
[1749267073411,25.00515035,148.82,148.81,52.26]
[1749267074114,25.00515035,148.82,148.78,6.72126725]
[1749267074418,154.81333992,148.81,148.79,41.44]
[1749267074913,154.81333992,148.81,148.78,6.72126725]
[1749267075115,154.81333992,148.81,148.8,41.44]
[1749267075826,25.14731192,148.81,148.8,41.44]
[1749267076229,25.14731192,148.81,148.78,6.7213159]
[1749267076431,18.933972,148.81,148.8,41.44]
[1749267076715,25.14731192,148.81,148.8,41.44]
[1749267077635,25.14731192,148.81,148.79,41.44]
[1749267077933,148.6,148.8,148.79,41.44]
[1749267078427,154.81333992,148.8,148.77,10.84]
[1749267078635,6.21333992,148.79,148.78,41.44]
[1749267082821,25.00515035,148.79,148.78,41.44]
[1749267083023,154.81333992,148.8,148.78,41.44]
[1749267084848,154.81333992,148.8,148.78,48.1609633]
[1749267085005,148.6,148.8,148.78,48.1609633]
[1749267085905,154.81333992,148.8,148.78,48.1609633]
[1749267087138,154.81333992,148.8,148.79,41.44]
[1749267088338,148.6,148.8,148.79,41.44]
[1749267088509,154.81333992,148.8,148.79,41.44]
[1749267089934,154.81333992,148.8,148.79,48.16088177]
[1749267090123,148.6,148.8,148.79,48.16088177]
[1749267093328,18.64964886,148.84,148.79,71.17642613]
[1749267093512,148.6,148.83,148.79,71.17642613]
[1749267093719,148.6,148.83,148.8,6.21333992]
[1749267093918,148.6,148.83,148.81,41.44]
[1749267095125,6.21333992,148.82,148.81,41.44]
[1749267096057,154.81333992,148.83,148.81,41.44]
[1749267098418,173.60515035,148.82,148.81,41.44]
[1749267099232,148.6,148.82,148.81,41.44]
[1749267102836,154.81333992,148.82,148.81,41.44]
[1749267107855,173.46298878,148.82,148.81,41.44]
[1749267108163,173.60515035,148.82,148.81,41.42]
[1749267108933,173.60515035,148.82,148.78,17.54119116]
[1749267109163,6.21333992,148.81,148.79,41.42]
[1749267109348,173.60515035,148.82,148.79,48.14077883]
[1749267111959,148.6,148.82,148.79,48.14077883]
[1749267112840,148.6,148.82,148.79,54.35411875]
[1749267113045,148.6,148.82,148.8,6.21333992]
[1749267113248,148.6,148.82,148.81,41.42]
[1749267113848,148.6,148.82,148.81,48.13997849]
[1749267117365,148.6,148.82,148.81,41.42]
[1749267121356,154.81333992,148.82,148.81,41.42]
[1749267122169,154.81333992,148.82,148.81,41.4]
[1749267122745,180.32467729,148.82,148.81,41.4]
[1749267123573,173.60515035,148.82,148.81,41.4]
[1749267123872,173.74731192,148.82,148.81,41.4]
[1749267125350,25.14731192,148.82,148.81,41.4]
[1749267126952,167.39181043,148.81,148.78,10.82]
[1749267127159,6.21333992,148.8,148.79,41.4]
[1749267127765,25.14731192,148.8,148.78,10.82]
[1749267127968,25.14731192,148.8,148.79,41.4]
[1749267129072,6.21333992,148.8,148.79,41.4]
[1749267129283,148.6,148.81,148.79,48.12084266]
[1749267129284,154.81333992,148.81,148.79,48.12084266]
[1749267129463,148.6,148.81,148.79,48.12084266]
[1749267130654,148.6,148.81,148.79,54.33418258]
[1749267131161,148.6,148.81,148.8,12.93377002]
[1749267132378,148.6,148.81,148.8,6.7204301]
[1749267137389,148.6,148.81,148.8,12.93377002]
[1749267140184,6.21333992,148.84,148.8,12.93377002]
[1749267140486,6.21333992,148.84,148.81,41.38]
[1749267141988,6.21333992,148.84,148.81,58.89987284]
[1749267145072,6.21333992,148.84,148.81,52.18]
[1749267146374,6.21333992,148.83,148.81,52.18]
[1749267148096,6.21333992,148.82,148.81,52.18]
[1749267150295,6.21333992,148.83,148.81,52.18]
[1749267151192,6.21333992,148.82,148.81,52.18]
[1749267151498,6.21333992,148.82,148.81,41.38]
[1749267153499,12.93286686,148.82,148.81,41.38]
[1749267156195,12.93286686,148.82,148.79,10.8]
[1749267156401,6.71907545,148.83,148.81,41.38]
[1749267157708,20.19024886,148.84,148.81,41.38]
[1749267157709,12.93286686,148.82,148.81,41.38]
[1749267158120,12.93286686,148.82,148.79,10.8]
[1749267158121,31.58251572,148.82,148.79,10.8]
[1749267158416,24.86298878,148.8,148.79,10.8]
[1749267158781,24.86298878,148.8,148.79,52.18]
[1749267158986,24.86298878,148.8,148.79,10.8]
[1749267159182,24.86298878,148.8,148.79,52.18]
[1749267160211,25.14731192,148.8,148.79,41.38]
[1749267161202,6.21333992,148.8,148.79,41.38]
[1749267161393,148.6,148.81,148.79,41.38]
[1749267161596,154.81333992,148.81,148.79,41.38]
[1749267161905,6.21333992,148.8,148.79,41.38]
[1749267165098,148.6,148.81,148.79,41.38]
[1749267165402,6.21333992,148.8,148.79,48.10088177]
[1749267165608,6.21333992,148.8,148.77,6.7217853]
[1749267165808,6.21333992,148.8,148.78,41.38]
[1749267166008,154.81333992,148.81,148.78,41.38]
[1749267166791,6.21333992,148.8,148.78,41.38]
[1749267167393,6.21333992,148.8,148.78,48.10133032]
[1749267168517,148.6,148.81,148.78,48.10133032]
[1749267168720,6.21333992,148.8,148.78,48.10133032]
[1749267170320,154.81333992,148.81,148.78,48.10133032]
[1749267172215,154.81333992,148.81,148.78,58.90133032]
[1749267172817,148.6,148.81,148.78,65.11467024]
[1749267173207,154.81333992,148.81,148.78,58.90133032]
[1749267173717,6.21333992,148.8,148.78,52.18]
[1749267175723,6.21333992,148.79,148.78,10.8]
[1749267175916,6.21333992,148.79,148.78,52.16]
[1749267178917,148.6,148.81,148.78,58.88120873]
[1749267179213,154.81333992,148.81,148.78,58.88120873]
[1749267180727,148.6,148.81,148.78,65.09454865]
[1749267181298,148.6,148.81,148.78,58.88120873]
[1749267182422,148.6,148.81,148.78,65.09454865]
[1749267183226,148.6,148.81,148.78,58.88120873]
[1749267187637,154.81333992,148.81,148.78,52.16]
[1749267187929,6.21333992,148.8,148.78,52.16]
[1749267188302,6.21333992,148.79,148.78,10.8]
[1749267188799,6.21333992,148.79,148.78,52.16]
[1749267190417,148.6,148.81,148.78,52.16]
[1749267190621,154.81333992,148.8,148.78,58.8812238]
[1749267191725,148.6,148.8,148.78,58.8812238]
[1749267204443,148.6,148.8,148.78,68.62171418]
[1749267204659,148.6,148.8,148.79,9.74049038]
[1749267205575,148.6,148.8,148.79,16.46137215]
[1749267206949,11.28109038,148.84,148.79,16.46137215]
[1749267207162,11.28109038,148.84,148.81,6.71997849]
[1749267207474,11.28109038,148.84,148.82,41.34]
[1749267209868,9.74049038,148.83,148.82,41.34]
[1749267210065,28.67446238,148.83,148.82,41.34]
[1749267212070,35.39353783,148.83,148.82,41.34]